bitfinex-derivatives/quotes_BTCF0:USTF0_20250501
["timestamp","ask_amount","ask_price","bid_price","bid_amount"]
[1746109043726,0.2073967,96428.0,96427.0,1.00044814]
[1746109043923,0.2113967,96428.0,96427.0,1.00044814]
[1746109046328,0.00404,96428.0,96427.0,1.00044814]
[1746109046518,0.2113967,96428.0,96427.0,1.00044814]
[1746109047821,0.00404,96428.0,96427.0,1.00044814]
[1746109048228,0.2113967,96428.0,96427.0,1.00044814]
[1746109049132,0.00404,96428.0,96427.0,1.00044814]
[1746109049325,0.0518184,96467.0,96441.0,0.2073288]
[1746109049517,0.21584399,96445.0,96444.0,0.2073223]
[1746109049720,0.2088248,96445.0,96444.0,0.63176344]
[1746109049928,0.0015,96445.0,96444.0,0.63176344]
[1746109050231,0.2088602,96445.0,96444.0,0.63176344]
[1746109050416,0.2088202,96445.0,96444.0,0.63176344]
[1746109050620,0.2088602,96445.0,96444.0,0.63176344]
[1746109051132,0.2088602,96445.0,96444.0,0.42444114]
[1746109051430,0.2138602,96445.0,96444.0,0.63176344]
[1746109052030,0.00654,96445.0,96444.0,0.63176344]
[1746109052526,0.2138602,96445.0,96444.0,0.63176344]
[1746109052725,0.2138602,96445.0,96444.0,0.42444114]
[1746109052920,0.2138602,96445.0,96444.0,0.63176344]
[1746109053836,0.0065,96445.0,96444.0,0.63176344]
[1746109054031,0.0528242,96456.0,96444.0,0.42444114]
[1746109054237,0.001,96456.0,96455.0,0.5680987]
[1746109054431,0.2082965,96456.0,96455.0,0.3608]
[1746109054633,0.2083365,96456.0,96455.0,0.3608]
[1746109054830,0.2082965,96456.0,96455.0,0.3608]
[1746109055031,0.2083365,96456.0,96455.0,0.3608]
[1746109055528,0.2083365,96456.0,96440.0,0.3608]
[1746109055529,0.2073288,96441.0,96440.0,0.3608]
[1746109055928,0.2073288,96441.0,96432.0,0.3608]
[1746109055929,0.2073417,96435.0,96420.0,0.3608]
[1746109056833,0.2073417,96435.0,96434.0,0.42599661]
[1746109057035,0.2073417,96435.0,96434.0,0.78679661]
[1746109057536,0.2073347,96441.0,96440.0,0.2591588]
[1746109057735,0.2073347,96441.0,96440.0,0.2073266]
[1746109058031,0.2073747,96441.0,96440.0,0.42444114]
[1746109059635,0.2083747,96441.0,96440.0,0.63177204]
[1746109059835,0.2083747,96441.0,96440.0,0.42444114]
[1746109062431,0.00104,96441.0,96440.0,0.63177204]
[1746109062834,0.001,96441.0,96440.0,0.63177204]
[1746109063136,0.2083288,96441.0,96440.0,0.63177204]
[1746109063534,0.2083288,96441.0,96440.0,0.42444114]
[1746109063736,0.2083688,96441.0,96440.0,0.42444114]
[1746109064132,0.2073417,96435.0,96434.0,0.3608]
[1746109065830,0.2083417,96435.0,96434.0,0.3608]
[1746109070033,0.2083817,96435.0,96434.0,0.3608]
[1746109070642,0.2073567,96428.0,96427.0,0.00940367]
[1746109070944,0.2073567,96428.0,96427.0,0.10940367]
[1746109071144,0.2073567,96428.0,96427.0,0.53384481]
[1746109072031,0.2083567,96428.0,96427.0,0.10940367]
[1746109072237,0.2083567,96428.0,96427.0,0.00940367]
[1746109072841,0.21509847,96428.0,96427.0,0.00940367]
[1746109073043,0.19509847,96428.0,96427.0,0.00940367]
[1746109073930,0.19509847,96428.0,96427.0,0.00028367]
[1746109074134,0.65960247,96428.0,96427.0,7e-08]
[1746109074335,0.90960247,96428.0,96427.0,7e-08]
[1746109074530,0.90960247,96428.0,96427.0,6e-08]
[1746109074737,0.2073847,96415.0,96414.0,0.00155558]
[1746109074937,0.2073847,96415.0,96414.0,0.00928547]
[1746109075134,0.2073847,96415.0,96414.0,0.00155558]
[1746109075946,0.2073847,96415.0,96414.0,0.00355558]
[1746109076148,0.2073847,96415.0,96414.0,0.00455558]
[1746109076946,0.2073847,96415.0,96414.0,0.00255558]
[1746109077145,0.2083847,96415.0,96414.0,0.00255558]
[1746109077746,0.2083847,96415.0,96414.0,0.01042765]
[1746109077937,0.2093847,96415.0,96414.0,0.42599672]
[1746109078138,0.002,96415.0,96414.0,0.64108932]
[1746109078337,0.00204,96415.0,96414.0,0.64108932]
[1746109078538,0.002,96415.0,96414.0,0.64108932]
[1746109078738,0.2094247,96415.0,96414.0,0.43370252]
[1746109079347,0.2084247,96415.0,96414.0,0.43570252]
[1746109079645,4e-05,96415.0,96414.0,0.64408932]
[1746109080442,0.2073773,96419.0,96418.0,0.2073737]
[1746109080844,0.2073773,96419.0,96418.0,0.42444114]
[1746109081044,0.2073773,96419.0,96418.0,0.63181934]
[1746109081248,0.2073773,96419.0,96418.0,0.42444114]
[1746109082142,0.2073773,96419.0,96418.0,0.63181934]
[1746109082337,0.2073761,96419.0,96418.0,0.42444114]
[1746109082542,0.2073761,96419.0,96418.0,0.42544114]
[1746109083753,0.1036868,96421.0,96418.0,0.42544114]
[1746109083949,5.401e-05,96432.0,96418.0,0.42544114]
[1746109083950,0.0518283,96449.0,96420.0,0.42444114]
[1746109084158,0.2073589,96427.0,96426.0,0.3608]
[1746109084546,0.2073589,96427.0,96426.0,0.78524114]
[1746109084840,0.2073989,96427.0,96426.0,0.78524114]
[1746109085558,0.2083989,96427.0,96426.0,0.78524114]
[1746109086452,0.2083989,96427.0,96426.0,0.3608]
[1746109087349,0.2083989,96427.0,96426.0,0.00330397]
[1746109087350,0.5691989,96427.0,96426.0,0.00330397]
[1746109087742,0.2073847,96415.0,96414.0,0.00926138]
[1746109087949,0.2073847,96415.0,96414.0,0.43370252]
[1746109088344,0.2073847,96415.0,96414.0,0.00926138]
[1746109088949,0.2073847,96415.0,96414.0,0.01126138]
[1746109089150,0.2073847,96415.0,96414.0,0.01226138]
[1746109091558,0.5681847,96415.0,96414.0,0.01226138]
[1746109091753,0.9219047,96415.0,96414.0,8e-08]
[1746109092857,0.5184842,96411.0,96392.0,1e-08]
[1746109093154,0.5184842,96411.0,96364.0,0.00750834]
[1746109093155,0.5187803,96356.0,96332.0,0.1]
[1746109093353,0.5187803,96356.0,96315.0,0.3608]
[1746109093354,0.2075979,96316.0,96315.0,0.3608]
[1746109093555,0.18749938,96325.0,96315.0,0.3608]
[1746109093754,0.18749938,96340.0,96324.0,0.3608]
[1746109093956,0.0518878,96338.0,96336.0,0.42444114]
[1746109094151,0.2837126,96337.0,96336.0,0.42444114]
[1746109094351,0.2075591,96334.0,96333.0,0.3608]
[1746109094861,0.2015591,96334.0,96333.0,0.3608]
[1746109095347,0.2015991,96334.0,96333.0,0.3608]
[1746109095548,0.2015991,96334.0,96333.0,0.3618]
[1746109097548,0.2777591,96334.0,96333.0,0.3618]
[1746109100850,0.0762,96334.0,96333.0,0.78624114]
[1746109101062,0.2837591,96334.0,96333.0,0.78624114]
[1746109101455,0.2837191,96334.0,96333.0,0.78624114]
[1746109101655,0.2837591,96334.0,96333.0,0.78624114]
[1746109102054,0.2837591,96334.0,96333.0,0.3618]
[1746109103860,0.2837591,96334.0,96333.0,0.3240752]
[1746109104062,0.2075979,96316.0,96315.0,0.36855135]
[1746109104455,0.20772285,96316.0,96315.0,0.79299249]
[1746109105054,0.20772285,96316.0,96315.0,0.37155135]
[1746109105254,0.56852285,96316.0,96315.0,0.003]
[1746109105453,0.2076194,96306.0,96305.0,0.10103836]
[1746109105670,0.2036194,96306.0,96305.0,0.4254795]
[1746109106260,0.57017555,96306.0,96305.0,0.4254795]
[1746109106768,0.57017555,96306.0,96305.0,0.4294795]
[1746109106968,0.20937555,96306.0,96305.0,0.5294795]
[1746109107158,0.2016194,96306.0,96305.0,0.5294795]
[1746109108065,0.2016194,96306.0,96305.0,0.53734083]
[1746109108365,0.2016594,96306.0,96305.0,0.53934083]
[1746109108573,0.2016194,96306.0,96305.0,0.53934083]
[1746109108764,0.2016594,96306.0,96305.0,0.53934083]
[1746109109361,0.2016594,96306.0,96305.0,0.43934083]
[1746109110662,4e-05,96306.0,96305.0,0.43934083]
[1746109110862,0.2076194,96306.0,96305.0,0.43934083]
[1746109111067,0.2076594,96306.0,96305.0,0.4314795]
[1746109111373,0.20777913,96306.0,96305.0,0.00703836]
[1746109112963,0.20777913,96306.0,96305.0,0.4314795]
[1746109113364,0.20773913,96306.0,96305.0,0.4314795]
[1746109113574,0.20777913,96306.0,96305.0,0.4314795]
[1746109114572,0.20777913,96306.0,96305.0,0.00703836]
[1746109119166,0.07611973,96306.0,96305.0,0.4314795]
[1746109119377,0.28369913,96306.0,96305.0,0.4314795]
[1746109119572,0.28373913,96306.0,96305.0,0.4314795]
[1746109119877,0.00011973,96306.0,96305.0,0.9999011]
[1746109120176,0.00015973,96306.0,96305.0,0.9999011]
[1746109120376,0.00011973,96306.0,96305.0,0.9999011]
[1746109120574,0.00015973,96306.0,96305.0,0.9999011]
[1746109120769,0.0518941,96326.0,96305.0,1.1461155]
[1746109120970,0.00771344,96326.0,96325.0,0.78524114]
[1746109121176,0.2075763,96326.0,96325.0,0.78524114]
[1746109121567,0.2076163,96326.0,96325.0,0.78524114]
[1746109121874,4e-05,96326.0,96325.0,0.99281964]
[1746109122074,0.2076163,96326.0,96325.0,0.99281964]
[1746109122275,0.2076163,96326.0,96325.0,0.78524114]
[1746109122475,0.2096163,96326.0,96325.0,0.78524114]
[1746109122680,0.2096163,96326.0,96325.0,0.42444114]
[1746109123583,0.2116163,96326.0,96325.0,0.42444114]
[1746109124174,0.2075957,96317.0,96316.0,0.3608]
[1746109124683,0.2076194,96306.0,96305.0,0.36183836]
[1746109124877,0.2076194,96306.0,96305.0,0.46183836]
[1746109125087,0.2076194,96306.0,96305.0,0.8862795]
[1746109126084,0.2076194,96306.0,96305.0,0.8882795]
[1746109126979,0.2076194,96306.0,96305.0,0.8902795]
[1746109131596,0.2076594,96306.0,96305.0,0.8902795]
[1746109133397,0.2076194,96306.0,96305.0,0.8902795]
[1746109133698,0.2076594,96306.0,96305.0,0.8902795]
[1746109135793,0.2076594,96306.0,96305.0,1.0979011]
[1746109135988,4e-05,96306.0,96305.0,1.0979011]
[1746109136195,0.0518937,96327.0,96316.0,0.0518993]
[1746109136496,0.0518908,96332.0,96327.0,0.2075728]
[1746109136683,0.2076206,96324.0,96323.0,0.3608]
[1746109136889,0.2075806,96324.0,96323.0,0.3608]
[1746109137192,0.2076206,96324.0,96323.0,0.99282394]
[1746109137501,4e-05,96324.0,96323.0,0.99282394]
[1746109137984,0.2076206,96324.0,96323.0,0.99282394]
[1746109138190,4e-05,96324.0,96323.0,0.99282394]
[1746109138388,0.2076206,96324.0,96323.0,0.99282394]
[1746109138592,0.2086206,96324.0,96323.0,0.99282394]
[1746109138797,0.2086206,96324.0,96323.0,0.78524114]
[1746109138992,0.2106206,96324.0,96323.0,0.78524114]
[1746109139388,0.2106206,96324.0,96323.0,0.3608]
[1746109142393,0.2105806,96324.0,96323.0,0.3608]
[1746109142588,0.2106206,96324.0,96323.0,0.78524114]
[1746109142995,0.00304,96324.0,96323.0,0.78524114]
[1746109143303,0.2105806,96324.0,96323.0,0.78524114]
[1746109143498,0.003,96324.0,96323.0,0.99282394]
[1746109143699,0.2105806,96324.0,96323.0,0.99282394]
[1746109143893,0.2105806,96324.0,96323.0,0.78524114]
[1746109143894,0.2106206,96324.0,96323.0,0.78524114]
[1746109145003,0.00304,96324.0,96323.0,0.99282394]
[1746109145296,0.003,96324.0,96323.0,0.99282394]
[1746109145491,0.00304,96324.0,96323.0,0.99282394]
[1746109145693,0.2106206,96324.0,96323.0,0.99282394]
[1746109146602,0.2106206,96324.0,96323.0,0.78524114]
[1746109147705,0.2106206,96324.0,96323.0,0.612591]
[1746109149498,0.2106206,96324.0,96323.0,0.42444114]
[1746109151795,0.2075979,96316.0,96315.0,0.3608]
[1746109152200,0.2075979,96316.0,96315.0,0.78524114]
[1746109152396,0.2075979,96316.0,96315.0,0.3608]
[1746109155004,0.0529356,96324.0,96315.0,0.3608]
[1746109155005,4e-05,96324.0,96315.0,0.78524114]
[1746109155307,4e-05,96324.0,96323.0,0.99282394]
[1746109155514,0.2075688,96330.0,96325.0,0.0518946]
[1746109155808,0.00155401,96340.0,96339.0,0.63198944]
[1746109155993,9.842e-05,96359.0,96339.0,0.63198944]
[1746109155994,0.001,96366.0,96348.0,0.0518818]
[1746109156198,0.2075074,96358.0,96357.0,0.3608]
[1746109156404,0.5683074,96358.0,96357.0,0.42444114]
[1746109156708,0.2075461,96340.0,96339.0,0.3608]
[1746109156903,0.2075403,96343.0,96342.0,0.2075395]
[1746109157207,0.2075356,96345.0,96344.0,0.2075367]
[1746109157409,0.2075315,96347.0,96346.0,0.2075325]
[1746109157600,0.0518826,96348.0,96344.0,0.2075358]
[1746109157796,0.0518782,96356.0,96347.0,0.42444114]
[1746109158109,0.2593899,96356.0,96355.0,0.42444114]
[1746109158511,0.2075289,96348.0,96347.0,0.3608]
[1746109158806,0.2075279,96350.0,96349.0,0.2075213]
[1746109159204,0.2075279,96350.0,96349.0,0.63196244]
[1746109159708,0.003,96356.0,96355.0,0.2075138]
[1746109160012,5.401e-05,96374.0,96365.0,0.2074923]
[1746109160206,5.401e-05,96374.0,96365.0,0.99273344]
[1746109160207,0.0518706,96370.0,96365.0,0.99273344]
[1746109160403,0.001,96366.0,96365.0,0.99273344]
[1746109160606,0.00104,96366.0,96365.0,0.99273344]
[1746109161610,0.00404,96366.0,96365.0,0.99273344]
[1746109161821,0.00704,96366.0,96365.0,0.99273344]
[1746109162613,0.00704,96366.0,96365.0,1.09650544]
[1746109162805,0.0518664,96378.0,96373.0,0.2074746]
[1746109163002,0.0045145,96377.0,96374.0,0.99271404]
[1746109163211,0.2089708,96375.0,96374.0,0.78524114]
[1746109163608,0.2090108,96375.0,96374.0,0.78524114]
[1746109164916,0.00154,96375.0,96374.0,0.99271404]
[1746109165116,0.00654,96375.0,96374.0,0.99271404]
[1746109166417,0.2140108,96375.0,96374.0,0.78524114]
[1746109166813,0.2140108,96375.0,96374.0,0.3608]
[1746109167617,0.00654,96375.0,96374.0,0.99271404]
[1746109167919,0.00654,96375.0,96374.0,1.00058554]
[1746109167920,0.0065,96375.0,96374.0,1.00058554]
[1746109168115,0.00654,96375.0,96374.0,1.00058554]
[1746109168310,0.0065,96375.0,96374.0,0.79311264]
[1746109168619,0.00654,96375.0,96374.0,1.00058554]
[1746109169420,0.00654,96375.0,96374.0,0.79311264]
[1746109169619,0.00654,96375.0,96374.0,1.00058554]
[1746109170011,0.0065,96375.0,96374.0,1.00058554]
[1746109170211,0.2140108,96375.0,96374.0,0.3686715]
[1746109173919,0.2139708,96375.0,96374.0,0.3686715]
[1746109174116,0.2140108,96375.0,96374.0,0.3686715]
[1746109176225,0.00654,96375.0,96374.0,1.36138554]
[1746109176417,0.0065,96375.0,96374.0,1.36138554]
[1746109176725,0.00654,96375.0,96374.0,1.36138554]
[1746109177516,0.00654,96375.0,96374.0,0.79311264]
[1746109177923,0.00654,96375.0,96374.0,0.0078715]
[1746109177924,0.2140108,96375.0,96374.0,0.0078715]
[1746109178125,0.0518726,96366.0,96351.0,0.3608]
[1746109178322,0.2074966,96363.0,96362.0,0.1]
[1746109178717,0.2075203,96352.0,96351.0,0.3608]
[1746109180026,0.2075203,96352.0,96351.0,0.78524114]
[1746109180725,0.2075203,96352.0,96351.0,0.78724114]
[1746109180918,0.2075603,96352.0,96351.0,0.78724114]
[1746109181120,0.21220537,96352.0,96351.0,0.78724114]
[1746109181322,0.21220537,96352.0,96351.0,0.78824114]
[1746109181516,0.21220537,96352.0,96351.0,0.78624114]
[1746109181716,0.21220537,96352.0,96351.0,0.78724114]
[1746109181918,0.21220537,96352.0,96351.0,0.79508777]
[1746109182526,0.21320537,96352.0,96351.0,0.79508777]
[1746109183323,0.21320537,96352.0,96351.0,0.79308777]
[1746109184129,0.21420537,96352.0,96351.0,0.79308777]
[1746109185216,0.64371337,96352.0,96351.0,3e-08]
[1746109185417,0.64371337,96352.0,96341.0,7.513e-05]
[1746109185418,0.2075418,96342.0,96341.0,7.513e-05]
[1746109185622,0.5683418,96342.0,96341.0,7.513e-05]
[1746109185822,0.3113378,96342.0,96341.0,7.513e-05]
[1746109186526,0.6721378,96342.0,96341.0,7.513e-05]
[1746109186723,0.5683418,96342.0,96341.0,7.513e-05]
[1746109187027,0.5683418,96342.0,96341.0,0.0076839]
[1746109187229,0.5723418,96342.0,96341.0,7.513e-05]
[1746109187923,0.5713418,96342.0,96341.0,7.513e-05]
[1746109189823,0.5733418,96342.0,96341.0,7.513e-05]
[1746109190429,0.2125418,96342.0,96341.0,7.513e-05]
[1746109190628,0.5733418,96342.0,96341.0,7.513e-05]
[1746109190830,0.2125418,96342.0,96341.0,7.513e-05]
[1746109191123,0.2125818,96342.0,96341.0,7.513e-05]
[1746109191332,0.5733818,96342.0,96341.0,7.513e-05]
[1746109191632,0.5713818,96342.0,96341.0,7.513e-05]
[1746109191834,0.5733818,96342.0,96341.0,0.00773366]
[1746109193732,0.5713818,96342.0,96341.0,0.00773366]
[1746109193932,0.5733818,96342.0,96341.0,0.00773366]
[1746109194428,0.5703818,96342.0,96341.0,0.00773366]
[1746109194625,0.5733818,96342.0,96341.0,0.00773366]
[1746109194831,0.5713818,96342.0,96341.0,0.00773366]
[1746109195033,0.5733818,96342.0,96341.0,0.00773366]
[1746109195424,0.6771778,96342.0,96341.0,6e-08]
[1746109195626,0.2075548,96336.0,96335.0,9e-08]
[1746109195831,0.2075828,96323.0,96322.0,0.00151736]
[1746109196036,0.2075828,96323.0,96322.0,6e-08]
[1746109196037,0.5683828,96323.0,96322.0,6e-08]
[1746109196937,0.5683828,96323.0,96322.0,0.00100006]
[1746109198234,0.56848214,96323.0,96322.0,0.00100006]
[1746109198437,0.5684625,96323.0,96322.0,0.00100006]
[1746109198631,0.56947945,96323.0,96322.0,0.00100006]
[1746109198831,0.56948214,96323.0,96322.0,0.00100006]
[1746109199030,0.5693828,96323.0,96322.0,0.00100006]
[1746109199230,0.5693828,96323.0,96322.0,6e-08]
[1746109201142,0.5693828,96323.0,96322.0,0.0079662]
[1746109201339,0.001,96323.0,96322.0,0.56838496]
[1746109201529,0.20868214,96323.0,96322.0,0.4244412]
[1746109201734,0.20868214,96323.0,96322.0,6e-08]
[1746109202138,0.20872214,96323.0,96322.0,6e-08]
[1746109202532,0.20872214,96323.0,96322.0,0.00200006]
[1746109203030,0.20872214,96323.0,96322.0,0.4264412]
[1746109203229,0.20872214,96323.0,96322.0,0.4244412]
[1746109203436,0.20868214,96323.0,96322.0,0.4244412]
[1746109203738,0.20872214,96323.0,96322.0,0.4244412]
[1746109204547,0.00113934,96323.0,96322.0,0.6320261]
[1746109205038,0.20760961,96336.0,96328.0,0.0518928]
[1746109205237,5.401e-05,96336.0,96335.0,0.5683569]
[1746109205544,0.2075425,96342.0,96339.0,0.0518866]
[1746109205732,0.0518826,96348.0,96342.0,0.2075413]
[1746109205931,0.00459986,96352.0,96348.0,0.0518822]
[1746109206240,0.2075158,96355.0,96353.0,0.2075165]
[1746109206437,0.0518744,96363.0,96362.0,0.42444114]
[1746109206747,5.401e-05,96367.0,96365.0,0.42444114]
[1746109206941,0.2084901,96366.0,96365.0,0.63193344]
[1746109207130,0.2085301,96366.0,96365.0,0.42444114]
[1746109207330,0.2085301,96366.0,96365.0,0.63193344]
[1746109207654,0.00104,96366.0,96365.0,0.63193344]
[1746109208239,0.3608,96389.0,96374.0,0.2074729]
[1746109208541,4e-05,96375.0,96374.0,0.78524114]
[1746109208745,5.401e-05,96387.0,96386.0,0.2074471]
[1746109208935,0.20749891,96387.0,96386.0,0.42444114]
[1746109209135,0.2074449,96387.0,96386.0,0.63188824]
[1746109209337,4e-05,96387.0,96386.0,0.63188824]
[1746109209635,0.2074849,96387.0,96386.0,0.42444114]
[1746109210239,0.2074471,96386.0,96385.0,0.3608]
[1746109211842,0.2074708,96375.0,96374.0,0.3608]
[1746109212343,0.3608,96383.0,96364.0,0.3608]
[1746109212539,0.0518668,96377.0,96364.0,0.36842382]
[1746109212739,0.0518668,96377.0,96365.0,0.2074916]
[1746109212939,0.2074848,96369.0,96365.0,0.2074916]
[1746109213452,0.2074869,96368.0,96364.0,0.36842382]
[1746109213744,0.002,96375.0,96364.0,0.36842382]
[1746109213940,0.0518701,96371.0,96365.0,0.2074917]
[1746109214147,0.2074923,96365.0,96364.0,0.36842382]
[1746109214334,0.2074886,96367.0,96365.0,0.001]
[1746109214533,0.2074901,96366.0,96365.0,0.001]
[1746109215157,0.2074863,96368.0,96365.0,0.001]
[1746109215537,0.2074886,96367.0,96364.0,0.36942382]
[1746109215749,0.2074923,96365.0,96364.0,0.36942382]
[1746109216637,0.2074923,96365.0,96364.0,0.36842382]
[1746109217946,0.2084923,96365.0,96364.0,0.36842382]
[1746109218541,0.2074923,96365.0,96364.0,0.36842382]
[1746109218844,0.2094923,96365.0,96364.0,0.36842382]
[1746109219435,0.5702923,96365.0,96364.0,8e-08]
[1746109219640,0.2075074,96358.0,96357.0,0.0015567]
[1746109220742,0.2075074,96358.0,96357.0,0.00913525]
[1746109220942,0.2075074,96358.0,96357.0,0.0015567]
[1746109221746,0.2105074,96358.0,96357.0,0.0015567]
[1746109222555,0.2105474,96358.0,96357.0,0.0015567]
[1746109222844,0.2105074,96358.0,96357.0,0.42599784]
[1746109223240,0.2105474,96358.0,96357.0,0.42599784]
[1746109223445,0.2105074,96358.0,96357.0,0.42599784]
[1746109223749,0.2105474,96358.0,96357.0,0.42599784]
[1746109223951,0.00304,96358.0,96357.0,0.42599784]
[1746109224245,0.00304,96358.0,96357.0,0.63350734]
[1746109224451,0.07552,96382.0,96357.0,0.83867514]
[1746109224652,0.2074708,96375.0,96374.0,0.42444114]
[1746109225045,0.2074809,96371.0,96369.0,0.3608]
[1746109225241,0.2074815,96370.0,96369.0,0.3608]
[1746109225747,0.2074815,96370.0,96369.0,0.78524114]
[1746109225948,0.2075215,96370.0,96369.0,0.78524114]
[1746109227244,0.2075215,96370.0,96369.0,0.78624114]
[1746109227442,5.401e-05,96378.0,96369.0,0.78624114]
[1746109227657,5.401e-05,96378.0,96377.0,0.99270764]
[1746109227850,0.2074643,96378.0,96377.0,0.78524114]
[1746109228041,4e-05,96378.0,96377.0,0.99270764]
[1746109231254,5.401e-05,96390.0,96389.0,0.2074406]
[1746109231554,0.2074785,96390.0,96389.0,0.78524114]
[1746109238660,0.2074643,96378.0,96377.0,0.3608]
[1746109239160,0.2074643,96378.0,96377.0,0.78524114]
[1746109244770,0.2074643,96378.0,96377.0,0.3608]
[1746109245059,0.2074837,96369.0,96368.0,0.3608]
[1746109245456,0.2074837,96369.0,96368.0,0.78524114]
[1746109246154,0.2075074,96358.0,96357.0,0.37025489]
[1746109246358,0.2075074,96358.0,96357.0,0.47025489]
[1746109246552,0.2075074,96358.0,96357.0,0.37025489]
[1746109247074,0.2102202,96358.0,96357.0,0.37025489]
[1746109248160,0.2102202,96358.0,96357.0,0.37225489]
[1746109248960,0.2102602,96358.0,96357.0,0.37225489]
[1746109249560,0.2102602,96358.0,96357.0,0.37025489]
[1746109253370,0.2075483,96339.0,96338.0,0.3608]
[1746109253556,0.2075483,96339.0,96338.0,0.4608]
[1746109253755,0.2075483,96339.0,96338.0,0.88524114]
[1746109253956,0.21025837,96339.0,96338.0,0.89283034]
[1746109254872,0.21025837,96339.0,96338.0,0.89483034]
[1746109255066,0.21025837,96339.0,96338.0,0.0095892]
[1746109255569,0.21025837,96339.0,96338.0,0.0115892]
[1746109256157,0.21025837,96339.0,96338.0,0.0095892]
[1746109256368,0.21025837,96339.0,96338.0,0.0105892]
[1746109257462,0.21029837,96339.0,96338.0,0.0105892]
[1746109257656,0.21029837,96339.0,96338.0,0.0095892]
[1746109258857,0.21029837,96339.0,96338.0,0.43403034]
[1746109259061,4e-05,96339.0,96338.0,0.43403034]
[1746109259571,0.2075483,96339.0,96338.0,0.43403034]
[1746109259771,0.2075883,96339.0,96338.0,0.43403034]
[1746109260364,4e-05,96339.0,96338.0,0.43403034]
[1746109260671,0.2075883,96339.0,96338.0,0.43403034]
[1746109261568,0.2075883,96339.0,96338.0,0.43303034]
[1746109261779,4e-05,96339.0,96338.0,0.43403034]
[1746109262275,0.2075883,96339.0,96338.0,0.43403034]
[1746109263677,4e-05,96339.0,96338.0,0.43403034]
[1746109263871,0.2075883,96339.0,96338.0,0.43403034]
[1746109266271,4e-05,96339.0,96338.0,0.43403034]
[1746109267478,0.0042253,96343.0,96338.0,0.43403034]
[1746109267684,4e-05,96339.0,96338.0,0.0095892]
[1746109268072,4e-05,96339.0,96338.0,0.43403034]
[1746109268478,0.2075883,96339.0,96338.0,0.43403034]
[1746109271177,4e-05,96339.0,96338.0,0.43403034]
[1746109271377,0.075,96365.0,96338.0,0.53783034]
[1746109271583,0.075,96365.0,96358.0,0.3608]
[1746109271879,0.2075052,96359.0,96358.0,0.3608]
[1746109272476,0.21185436,96359.0,96358.0,0.3608]
[1746109272676,0.21189436,96359.0,96358.0,0.3608]
[1746109272875,0.21189436,96359.0,96358.0,0.3618]
[1746109273579,0.00438916,96359.0,96358.0,0.3618]
[1746109273771,4e-05,96359.0,96358.0,1.09752854]
[1746109273975,0.053368,96375.0,96365.0,0.2074907]
[1746109274176,0.2074858,96368.0,96367.0,0.3608]
[1746109274383,0.00429816,96368.0,96367.0,0.3608]
[1746109274582,5.401e-05,96371.0,96370.0,0.2074815]
[1746109274977,0.0015,96375.0,96374.0,0.2074729]
[1746109275183,0.0015,96375.0,96374.0,0.42444114]
[1746109275375,0.0015,96375.0,96374.0,0.63191404]
[1746109275977,0.0015,96375.0,96374.0,0.42444114]
[1746109276377,0.0015,96375.0,96374.0,0.63191404]
[1746109276573,0.0015,96375.0,96374.0,0.42444114]
[1746109276783,0.0015,96375.0,96374.0,0.42544114]
[1746109276973,0.2089708,96375.0,96374.0,0.42544114]
[1746109277179,0.20902481,96375.0,96374.0,0.42544114]
[1746109277979,0.20902481,96375.0,96374.0,0.42644114]
[1746109278491,0.20902481,96375.0,96374.0,0.42544114]
[1746109278883,0.20902481,96375.0,96374.0,0.42444114]
[1746109279476,0.36235401,96375.0,96353.0,0.3608]
[1746109279686,0.207516,96354.0,96353.0,0.3608]
[1746109280079,0.2075375,96344.0,96343.0,0.3608]
[1746109280385,0.21169066,96344.0,96343.0,0.3608]
[1746109280582,0.21169066,96344.0,96343.0,0.78524114]
[1746109280783,0.21169066,96344.0,96343.0,0.3608]
[1746109288988,0.2075483,96339.0,96338.0,0.3683892]
[1746109289181,0.2075483,96339.0,96338.0,0.3608]
[1746109289391,0.2075483,96339.0,96338.0,0.78524114]
[1746109289780,0.0518856,96342.0,96327.0,0.3608]
[1746109289983,0.2075548,96336.0,96327.0,0.3608]
[1746109291193,0.2065548,96336.0,96327.0,0.3608]
[1746109291587,0.2055548,96336.0,96327.0,0.3608]
[1746109291786,0.2055548,96336.0,96335.0,0.00303804]
[1746109292183,0.2055548,96336.0,96335.0,0.00503804]
[1746109297902,0.2055548,96336.0,96335.0,0.01293991]
[1746109300706,0.5663548,96336.0,96335.0,1e-08]
[1746109300904,0.5663548,96336.0,96323.0,0.00012438]
[1746109300905,0.2075806,96324.0,96323.0,0.00012438]
[1746109302310,0.5683806,96324.0,96323.0,0.00412438]
[1746109303008,0.5683806,96324.0,96307.0,0.07464]
[1746109303009,0.051898,96319.0,96300.0,0.1]
[1746109303204,0.5654086,96311.0,96310.0,0.42444114]
[1746109304009,0.2076194,96306.0,96300.0,0.1]
[1746109304200,0.2076194,96306.0,96305.0,0.00803836]
[1746109304201,0.20679922,96306.0,96305.0,0.00803836]
[1746109304395,0.20679922,96306.0,96305.0,0.4324795]
[1746109304911,0.20679922,96306.0,96305.0,0.4254795]
[1746109305110,0.20379922,96306.0,96305.0,0.4254795]
[1746109305607,0.20379922,96306.0,96305.0,0.00103836]
[1746109305809,0.2076302,96301.0,96300.0,0.08896197]
[1746109305996,0.2046302,96301.0,96300.0,0.51340311]
[1746109306700,0.2016302,96301.0,96300.0,0.51340311]
[1746109306897,0.5624302,96301.0,96300.0,0.08896197]
[1746109307297,0.5624302,96301.0,96300.0,0.09296197]
[1746109307705,0.5624302,96301.0,96300.0,0.10081015]
[1746109308606,0.2016302,96301.0,96300.0,0.10081015]
[1746109308807,0.00417982,96306.0,96300.0,0.52525129]
[1746109309004,4e-05,96301.0,96300.0,0.10081015]
[1746109309205,4e-05,96301.0,96300.0,0.30844245]
[1746109309396,4e-05,96301.0,96300.0,0.83672359]
[1746109310011,0.21183752,96306.0,96300.0,0.83572359]
[1746109310207,4e-05,96301.0,96300.0,0.30744245]
[1746109310507,0.00012271,96311.0,96307.0,0.42444114]
[1746109310700,5.401e-05,96308.0,96307.0,0.2076172]
[1746109310900,0.07464,96331.0,96310.0,0.42444114]
[1746109311100,7.291e-05,96322.0,96318.0,0.3608]
[1746109311307,9.842e-05,96327.0,96318.0,0.3608]
[1746109311511,0.0518919,96330.0,96326.0,0.42444114]
[1746109311714,0.20764701,96327.0,96326.0,0.42444114]
[1746109312009,0.21181148,96327.0,96326.0,0.42444114]
[1746109312311,0.21581148,96327.0,96326.0,0.42444114]
[1746109312609,0.00823738,96327.0,96326.0,0.42444114]
[1746109313003,0.00407291,96327.0,96326.0,0.42444114]
[1746109313506,0.01232693,96327.0,96326.0,0.42444114]
[1746109313711,0.00804,96327.0,96326.0,0.42444114]
[1746109314304,0.00404,96327.0,96326.0,0.42444114]
[1746109314497,0.00904,96327.0,96326.0,0.42444114]
[1746109315807,0.01339537,96327.0,96326.0,0.42444114]
[1746109318903,0.22096947,96327.0,96326.0,0.42444114]